[Event "Titled Tuesday Blitz December 06 Late 2022"]
[White "Sadhwani, Raunak"]
[Black "Abasov, Nijat"]
[WhiteFideId "35093487"]
[BlackFideId "13402960"]
[WhiteElo "2657"]
[BlackElo "2546"]
[Result "1-0"]
[Round "10"]
[TimeControl "180+1"]
[Date "2022.12.06"]
[WhiteClock "0:01:39"]
[BlackClock "0:00:28"]

1. d4 {[%clk 0:03:00]}  Nf6 {[%clk 0:01:48]} 2. Nf3 {[%clk 0:02:59]}  d5 {[%clk 0:01:47]} 3. Bf4 {[%clk 0:03:00]}  c5 {[%clk 0:01:47]} 4. e3 {[%clk 0:03:00]}  Qb6 {[%clk 0:01:47]} 5. Nbd2 {[%clk 0:02:53]}  e6 {[%clk 0:01:44]} 6. Rb1 {[%clk 0:02:50]}  cxd4 {[%clk 0:01:40]} 7. exd4 {[%clk 0:02:51]}  Nc6 {[%clk 0:01:41]} 8. c3 {[%clk 0:02:51]}  Be7 {[%clk 0:01:40]} 9. Bd3 {[%clk 0:02:51]}  O-O {[%clk 0:01:40]} 10. O-O {[%clk 0:02:52]}  Qd8 {[%clk 0:01:34]} 11. Re1 {[%clk 0:02:50]}  Nh5 {[%clk 0:01:28]} 12. Be3 {[%clk 0:02:47]}  f5 {[%clk 0:01:16]} 13. Nf1 {[%clk 0:02:47]}  Qe8 {[%clk 0:01:08]} 14. c4 {[%clk 0:02:42]}  Nf6 {[%clk 0:01:07]} 15. Bf4 {[%clk 0:02:37]}  Bd7 {[%clk 0:01:04]} 16. Ne3 {[%clk 0:02:37]}  dxc4 {[%clk 0:00:50]} 17. Bxc4 {[%clk 0:02:37]}  Na5 {[%clk 0:00:51]} 18. Bd3 {[%clk 0:02:31]}  Rc8 {[%clk 0:00:46]} 19. d5 {[%clk 0:02:12]}  exd5 {[%clk 0:00:44]} 20. Nxf5 {[%clk 0:02:00]}  Bxf5 {[%clk 0:00:32]} 21. Bxf5 {[%clk 0:02:01]}  Rc4 {[%clk 0:00:29]} 22. Bg5 {[%clk 0:01:49]}  Nc6 {[%clk 0:00:27]} 23. Bxf6 {[%clk 0:01:48]}  Rxf6 {[%clk 0:00:28]} 24. Qxd5+ {[%clk 0:01:49]}  Qf7 {[%clk 0:00:28]} 25. Be6 {[%clk 0:01:49]}  Rxe6 {[%clk 0:00:28]} 26. Qxe6 {[%clk 0:01:49]}  Qxe6 {[%clk 0:00:28]} 27. Rxe6 {[%clk 0:01:50]}  Rc2 {[%clk 0:00:28]} 28. Nd4 {[%clk 0:01:39]} 1-0


[Site "https://www.chess.com"]

[Event "Titled Tuesday Blitz December 06 Late 2022"]
[White "Santos Flores, Alberto"]
[Black "Rosen, Eric"]
[WhiteFideId "3601234"]
[BlackFideId "2032562"]
[WhiteElo "2235"]
[BlackElo "2362"]
[Result "1/2-1/2"]
[Round "10"]
[TimeControl "180+1"]
[Date "2022.12.06"]
[WhiteClock "0:00:04"]
[BlackClock "0:00:03"]

1. d4 {[%clk 0:03:00]}  d5 {[%clk 0:03:00]} 2. c3 {[%clk 0:03:00]}  Nf6 {[%clk 0:02:59]} 3. Nf3 {[%clk 0:03:00]}  c5 {[%clk 0:02:56]} 4. Bf4 {[%clk 0:03:00]}  e6 {[%clk 0:02:49]} 5. e3 {[%clk 0:02:59]}  Bd6 {[%clk 0:02:49]} 6. Bg3 {[%clk 0:02:57]}  O-O {[%clk 0:02:38]} 7. Nbd2 {[%clk 0:02:57]}  Qc7 {[%clk 0:02:39]} 8. Be2 {[%clk 0:02:51]}  Nbd7 {[%clk 0:02:38]} 9. Bxd6 {[%clk 0:02:46]}  Qxd6 {[%clk 0:02:38]} 10. O-O {[%clk 0:02:43]}  e5 {[%clk 0:02:34]} 11. dxe5 {[%clk 0:02:43]}  Nxe5 {[%clk 0:02:35]} 12. c4 {[%clk 0:02:19]}  Be6 {[%clk 0:02:01]} 13. cxd5 {[%clk 0:02:14]}  Qxd5 {[%clk 0:01:52]} 14. Nxe5 {[%clk 0:02:06]}  Qxe5 {[%clk 0:01:52]} 15. Bc4 {[%clk 0:01:56]}  Rfd8 {[%clk 0:01:39]} 16. Bxe6 {[%clk 0:01:55]}  Qxe6 {[%clk 0:01:38]} 17. Qc2 {[%clk 0:01:52]}  Rac8 {[%clk 0:01:31]} 18. Rfd1 {[%clk 0:01:50]}  b6 {[%clk 0:01:08]} 19. h3 {[%clk 0:01:46]}  h6 {[%clk 0:01:08]} 20. a3 {[%clk 0:01:43]}  Rd7 {[%clk 0:00:59]} 21. Nf3 {[%clk 0:01:28]}  Rcd8 {[%clk 0:01:00]} 22. Rxd7 {[%clk 0:01:28]}  Qxd7 {[%clk 0:01:00]} 23. b4 {[%clk 0:01:25]}  Rc8 {[%clk 0:00:44]} 24. Rc1 {[%clk 0:01:24]}  c4 {[%clk 0:00:41]} 25. Nd4 {[%clk 0:01:09]}  b5 {[%clk 0:00:40]} 26. Qf5 {[%clk 0:00:51]}  Qxf5 {[%clk 0:00:36]} 27. Nxf5 {[%clk 0:00:52]}  Rd8 {[%clk 0:00:36]} 28. Nd4 {[%clk 0:00:51]}  a6 {[%clk 0:00:31]} 29. a4 {[%clk 0:00:32]}  bxa4 {[%clk 0:00:20]} 30. Rxc4 {[%clk 0:00:27]}  Rb8 {[%clk 0:00:20]} 31. Rc6 {[%clk 0:00:20]}  Rxb4 {[%clk 0:00:20]} 32. Rxa6 {[%clk 0:00:19]}  Nd5 {[%clk 0:00:19]} 33. Ra7 {[%clk 0:00:14]}  g6 {[%clk 0:00:18]} 34. Nc6 {[%clk 0:00:13]}  Rb1+ {[%clk 0:00:17]} 35. Kh2 {[%clk 0:00:14]}  Nc3 {[%clk 0:00:17]} 36. Ne5 {[%clk 0:00:11]}  Rb2 {[%clk 0:00:06]} 37. Nxf7 {[%clk 0:00:08]}  Rxf2 {[%clk 0:00:06]} 38. Nxh6+ {[%clk 0:00:09]}  Kf8 {[%clk 0:00:05]} 39. Ng4 {[%clk 0:00:08]}  Ra2 {[%clk 0:00:06]} 40. Ne5 {[%clk 0:00:08]}  g5 {[%clk 0:00:04]} 41. Kg3 {[%clk 0:00:05]}  Re2 {[%clk 0:00:04]} 42. Kg4 {[%clk 0:00:04]}  Rxe3 {[%clk 0:00:04]} 43. Kf5 {[%clk 0:00:02]}  Ke8 {[%clk 0:00:03]} 44. Ke6 {[%clk 0:00:02]}  Kd8 {[%clk 0:00:03]} 45. Kd6 {[%clk 0:00:02]}  Kc8 {[%clk 0:00:03]} 46. Ra8+ {[%clk 0:00:01]}  Kb7 {[%clk 0:00:03]} 47. Rg8 {[%clk 0:00:02]}  a3 {[%clk 0:00:03]} 48. Nc4 {[%clk 0:00:02]}  Rd3+ {[%clk 0:00:02]} 49. Kc5 {[%clk 0:00:03]}  a2 {[%clk 0:00:03]} 50. Rg7+ {[%clk 0:00:02]}  Kb8 {[%clk 0:00:03]} 51. Rg8+ {[%clk 0:00:02]}  Kc7 {[%clk 0:00:03]} 52. Rg7+ {[%clk 0:00:03]}  Kd8 {[%clk 0:00:03]} 53. Ra7 {[%clk 0:00:03]}  Rd1 {[%clk 0:00:02]} 54. Kb4 {[%clk 0:00:03]}  a1=Q {[%clk 0:00:03]} 55. Rxa1 {[%clk 0:00:03]}  Rxa1 {[%clk 0:00:03]} 56. Kxc3 {[%clk 0:00:04]}  Rg1 {[%clk 0:00:04]} 57. Kd4 {[%clk 0:00:04]}  Rxg2 {[%clk 0:00:05]} 58. Ke4 {[%clk 0:00:04]}  Ke7 {[%clk 0:00:04]} 59. Kf5 {[%clk 0:00:04]}  Rg3 {[%clk 0:00:05]} 60. Ne5 {[%clk 0:00:05]}  Rxh3 {[%clk 0:00:02]} 61. Kxg5 {[%clk 0:00:05]}  Ke6 {[%clk 0:00:02]} 62. Ng4 {[%clk 0:00:05]}  Rf3 {[%clk 0:00:03]} 63. Nh6 {[%clk 0:00:04]} 1/2-1/2


[Site "https://www.chess.com"]

[Event "Titled Tuesday Blitz December 06 Late 2022"]
[White "Seletsky, Grigory"]
[Black "Saya, Ethan"]
[WhiteFideId "14112191"]
[BlackFideId "26095181"]
[WhiteElo "2492"]
[BlackElo "2178"]
[Result "1-0"]
[Round "10"]
[TimeControl "180+1"]
[Date "2022.12.07"]
[WhiteClock "0:00:20"]
[BlackClock "0:01:18"]

1. d4 {[%clk 0:02:58]}  Nf6 {[%clk 0:02:57]} 2. c4 {[%clk 0:02:58]}  e6 {[%clk 0:02:56]} 3. g3 {[%clk 0:02:54]}  c5 {[%clk 0:02:57]} 4. dxc5 {[%clk 0:02:53]}  Bxc5 {[%clk 0:02:57]} 5. Bg2 {[%clk 0:02:53]}  Nc6 {[%clk 0:02:57]} 6. Nf3 {[%clk 0:02:53]}  d5 {[%clk 0:02:57]} 7. cxd5 {[%clk 0:02:52]}  Qxd5 {[%clk 0:02:56]} 8. Qxd5 {[%clk 0:02:51]}  Nxd5 {[%clk 0:02:57]} 9. a3 {[%clk 0:02:50]}  O-O {[%clk 0:02:55]} 10. O-O {[%clk 0:02:48]}  Be7 {[%clk 0:02:52]} 11. e4 {[%clk 0:02:43]}  Nb6 {[%clk 0:02:52]} 12. Re1 {[%clk 0:02:39]}  e5 {[%clk 0:02:51]} 13. h3 {[%clk 0:02:37]}  Be6 {[%clk 0:02:51]} 14. Nbd2 {[%clk 0:02:25]}  f6 {[%clk 0:02:46]} 15. b4 {[%clk 0:02:09]}  Rfd8 {[%clk 0:02:44]} 16. Bb2 {[%clk 0:02:05]}  Rac8 {[%clk 0:02:41]} 17. Rac1 {[%clk 0:02:03]}  a6 {[%clk 0:02:37]} 18. Bf1 {[%clk 0:01:58]}  Na7 {[%clk 0:02:36]} 19. Kg2 {[%clk 0:01:53]}  Nb5 {[%clk 0:02:34]} 20. Rxc8 {[%clk 0:01:46]}  Rxc8 {[%clk 0:02:33]} 21. Rc1 {[%clk 0:01:45]}  Rxc1 {[%clk 0:02:31]} 22. Bxc1 {[%clk 0:01:45]}  Na4 {[%clk 0:02:27]} 23. Bc4 {[%clk 0:01:39]}  Kf7 {[%clk 0:02:21]} 24. Ne1 {[%clk 0:01:28]}  Nd4 {[%clk 0:02:13]} 25. Bxe6+ {[%clk 0:01:18]}  Kxe6 {[%clk 0:02:11]} 26. Nd3 {[%clk 0:01:15]}  b5 {[%clk 0:02:05]} 27. f4 {[%clk 0:01:13]}  Nc3 {[%clk 0:01:56]} 28. f5+ {[%clk 0:01:00]}  Kd7 {[%clk 0:01:54]} 29. Bb2 {[%clk 0:00:47]}  Na4 {[%clk 0:01:48]} 30. Bxd4 {[%clk 0:00:43]}  exd4 {[%clk 0:01:49]} 31. Nb3 {[%clk 0:00:42]}  Kc6 {[%clk 0:01:45]} 32. Nxd4+ {[%clk 0:00:40]}  Kb6 {[%clk 0:01:43]} 33. Nf4 {[%clk 0:00:35]}  Nc3 {[%clk 0:01:40]} 34. Nd5+ {[%clk 0:00:34]}  Nxd5 {[%clk 0:01:40]} 35. exd5 {[%clk 0:00:34]}  a5 {[%clk 0:01:38]} 36. Nc6 {[%clk 0:00:31]}  axb4 {[%clk 0:01:35]} 37. axb4 {[%clk 0:00:29]}  Bxb4 {[%clk 0:01:29]} 38. Nxb4 {[%clk 0:00:28]}  Kc5 {[%clk 0:01:29]} 39. Kf3 {[%clk 0:00:27]}  h5 {[%clk 0:01:15]} 40. g4 {[%clk 0:00:26]}  hxg4+ {[%clk 0:01:14]} 41. hxg4 {[%clk 0:00:26]}  Kxb4 {[%clk 0:01:04]} 42. d6 {[%clk 0:00:25]}  Kc5 {[%clk 0:01:03]} 43. d7 {[%clk 0:00:24]}  b4 {[%clk 0:01:04]} 44. d8=Q {[%clk 0:00:24]}  b3 {[%clk 0:01:04]} 45. Qb8 {[%clk 0:00:21]}  Kc4 {[%clk 0:01:03]} 46. Qc7+ {[%clk 0:00:21]}  Kd3 {[%clk 0:01:03]} 47. Qxg7 {[%clk 0:00:20]}  b2 {[%clk 0:01:04]} 48. Qb7 {[%clk 0:00:20]}  Kc2 {[%clk 0:01:04]} 49. g5 {[%clk 0:00:20]}  fxg5 {[%clk 0:01:04]} 50. Kg4 {[%clk 0:00:20]}  b1=Q {[%clk 0:01:05]} 51. Qxb1+ {[%clk 0:00:19]}  Kxb1 {[%clk 0:01:06]} 52. Kxg5 {[%clk 0:00:19]}  Kc2 {[%clk 0:01:07]} 53. f6 {[%clk 0:00:19]}  Kd3 {[%clk 0:01:08]} 54. f7 {[%clk 0:00:19]}  Kd4 {[%clk 0:01:08]} 55. f8=Q {[%clk 0:00:19]}  Kd5 {[%clk 0:01:09]} 56. Qe7 {[%clk 0:00:19]}  Kc6 {[%clk 0:01:10]} 57. Qe5 {[%clk 0:00:19]}  Kd7 {[%clk 0:01:10]} 58. Qf6 {[%clk 0:00:18]}  Kc7 {[%clk 0:01:11]} 59. Qe6 {[%clk 0:00:18]}  Kb7 {[%clk 0:01:12]} 60. Qd6 {[%clk 0:00:18]}  Ka7 {[%clk 0:01:12]} 61. Qc6 {[%clk 0:00:18]}  Kb8 {[%clk 0:01:13]} 62. Qd7 {[%clk 0:00:18]}  Ka8 {[%clk 0:01:14]} 63. Kf5 {[%clk 0:00:19]}  Kb8 {[%clk 0:01:15]} 64. Ke5 {[%clk 0:00:19]}  Ka8 {[%clk 0:01:16]} 65. Kd5 {[%clk 0:00:19]}  Kb8 {[%clk 0:01:16]} 66. Kc5 {[%clk 0:00:20]}  Ka8 {[%clk 0:01:17]} 67. Kb6 {[%clk 0:00:20]}  Kb8 {[%clk 0:01:18]} 68. Qb7# {[%clk 0:00:20]} 1-0


[Site "https://www.chess.com"]

[Event "Titled Tuesday Blitz December 06 Late 2022"]
[White "Souleidis, Georgios"]
[Black "Makridis, Dimitrios"]
[WhiteFideId "4206827"]
[BlackFideId "25864475"]
[WhiteElo "2401"]
[BlackElo "2272"]
[Result "0-1"]
[Round "10"]
[TimeControl "180+1"]
[Date "2022.12.06"]
[WhiteClock "0:00:03"]
[BlackClock "0:00:41"]

1. e4 {[%clk 0:03:00]}  c5 {[%clk 0:02:58]} 2. Be2 {[%clk 0:03:00]}  Nf6 {[%clk 0:02:54]} 3. d3 {[%clk 0:03:00]}  d5 {[%clk 0:02:53]} 4. e5 {[%clk 0:03:01]}  Nfd7 {[%clk 0:02:53]} 5. f4 {[%clk 0:03:01]}  Nc6 {[%clk 0:02:53]} 6. Nf3 {[%clk 0:03:02]}  g6 {[%clk 0:02:53]} 7. O-O {[%clk 0:03:02]}  Bg7 {[%clk 0:02:52]} 8. c3 {[%clk 0:03:03]}  O-O {[%clk 0:02:52]} 9. d4 {[%clk 0:03:03]}  b6 {[%clk 0:02:52]} 10. Be3 {[%clk 0:03:03]}  Bb7 {[%clk 0:02:51]} 11. Nbd2 {[%clk 0:03:01]}  e6 {[%clk 0:02:50]} 12. Bd3 {[%clk 0:03:00]}  cxd4 {[%clk 0:02:48]} 13. Nxd4 {[%clk 0:02:59]}  Nc5 {[%clk 0:02:47]} 14. Bc2 {[%clk 0:02:58]}  Rc8 {[%clk 0:02:43]} 15. Rf3 {[%clk 0:02:49]}  Nxd4 {[%clk 0:02:38]} 16. Bxd4 {[%clk 0:02:49]}  Ne4 {[%clk 0:02:38]} 17. Nxe4 {[%clk 0:02:39]}  dxe4 {[%clk 0:02:39]} 18. Re3 {[%clk 0:02:40]}  Bh6 {[%clk 0:02:29]} 19. Bxe4 {[%clk 0:02:18]}  Bxe4 {[%clk 0:02:21]} 20. Rxe4 {[%clk 0:02:19]}  Qd5 {[%clk 0:02:20]} 21. Qf3 {[%clk 0:02:15]}  Rfd8 {[%clk 0:02:19]} 22. Re3 {[%clk 0:02:10]}  Qb5 {[%clk 0:02:12]} 23. Qf2 {[%clk 0:02:03]}  Bf8 {[%clk 0:02:07]} 24. Rd1 {[%clk 0:01:51]}  Bc5 {[%clk 0:01:59]} 25. Red3 {[%clk 0:01:50]}  Qa4 {[%clk 0:01:52]} 26. b3 {[%clk 0:01:35]}  Bxd4 {[%clk 0:01:51]} 27. Rxd4 {[%clk 0:01:24]}  Rxd4 {[%clk 0:01:50]} 28. Rxd4 {[%clk 0:01:20]}  Qa3 {[%clk 0:01:50]} 29. Qd2 {[%clk 0:01:15]}  Qc5 {[%clk 0:01:43]} 30. Kf1 {[%clk 0:01:01]}  Qxc3 {[%clk 0:01:41]} 31. Qxc3 {[%clk 0:00:56]}  Rxc3 {[%clk 0:01:42]} 32. Ke2 {[%clk 0:00:54]}  Rc1 {[%clk 0:01:37]} 33. Rd7 {[%clk 0:00:43]}  a5 {[%clk 0:01:34]} 34. Rd2 {[%clk 0:00:43]}  Kg7 {[%clk 0:01:33]} 35. g3 {[%clk 0:00:42]}  h6 {[%clk 0:01:31]} 36. Rd6 {[%clk 0:00:41]}  Rh1 {[%clk 0:01:26]} 37. h4 {[%clk 0:00:38]}  Rh2+ {[%clk 0:01:16]} 38. Kf3 {[%clk 0:00:38]}  b5 {[%clk 0:01:14]} 39. a4 {[%clk 0:00:24]}  Rb2 {[%clk 0:01:11]} 40. Rd3 {[%clk 0:00:20]}  bxa4 {[%clk 0:01:10]} 41. bxa4 {[%clk 0:00:21]}  Rb4 {[%clk 0:01:10]} 42. Ra3 {[%clk 0:00:21]}  g5 {[%clk 0:01:11]} 43. hxg5 {[%clk 0:00:19]}  hxg5 {[%clk 0:01:12]} 44. Kg4 {[%clk 0:00:19]}  Kg6 {[%clk 0:01:11]} 45. Ra1 {[%clk 0:00:19]}  gxf4 {[%clk 0:01:04]} 46. gxf4 {[%clk 0:00:19]}  f6 {[%clk 0:00:58]} 47. exf6 {[%clk 0:00:20]}  e5 {[%clk 0:00:58]} 48. f7 {[%clk 0:00:02]}  Rxf4+ {[%clk 0:00:57]} 49. Kg3 {[%clk 0:00:02]}  Kxf7 {[%clk 0:00:58]} 50. Re1 {[%clk 0:00:02]}  Ke6 {[%clk 0:00:57]} 51. Ra1 {[%clk 0:00:02]}  Kf5 {[%clk 0:00:58]} 52. Kg2 {[%clk 0:00:02]}  e4 {[%clk 0:00:55]} 53. Rb1 {[%clk 0:00:01]}  e3 {[%clk 0:00:55]} 54. Rb5+ {[%clk 0:00:02]}  Ke4 {[%clk 0:00:50]} 55. Rxa5 {[%clk 0:00:03]}  e2 {[%clk 0:00:50]} 56. Ra8 {[%clk 0:00:04]}  Rf1 {[%clk 0:00:39]} 57. Re8+ {[%clk 0:00:03]}  Kd3 {[%clk 0:00:40]} 58. Rd8+ {[%clk 0:00:02]}  Kc4 {[%clk 0:00:39]} 59. Rc8+ {[%clk 0:00:02]}  Kb4 {[%clk 0:00:40]} 60. Rb8+ {[%clk 0:00:02]}  Ka3 {[%clk 0:00:40]} 61. Ra8 {[%clk 0:00:03]}  e1=Q {[%clk 0:00:41]} 0-1


[Site "https://www.chess.com"]

[Event "Titled Tuesday Blitz December 06 Late 2022"]
[White "Szyszylo, Rafal"]
[Black "Espinosa, Pedro"]
[WhiteFideId "1109626"]
[BlackFideId "30921066"]
[WhiteElo "1981"]
[BlackElo "2016"]
[Result "1-0"]
[Round "10"]
[TimeControl "180+1"]
[Date "2022.12.07"]
[WhiteClock "0:01:13"]
[BlackClock "0:00:04"]

1. e4 {[%clk 0:02:09]}  c5 {[%clk 0:02:57]} 2. Nf3 {[%clk 0:02:08]}  d6 {[%clk 0:02:55]} 3. d4 {[%clk 0:02:08]}  cxd4 {[%clk 0:02:54]} 4. Nxd4 {[%clk 0:02:09]}  Nf6 {[%clk 0:02:54]} 5. Nc3 {[%clk 0:02:10]}  Nc6 {[%clk 0:02:54]} 6. Bc4 {[%clk 0:02:10]}  Qb6 {[%clk 0:02:52]} 7. Nde2 {[%clk 0:02:09]}  g6 {[%clk 0:02:43]} 8. Bb3 {[%clk 0:02:09]}  Bg7 {[%clk 0:02:42]} 9. Be3 {[%clk 0:02:09]}  Qc7 {[%clk 0:02:40]} 10. f3 {[%clk 0:02:09]}  a6 {[%clk 0:02:39]} 11. Qd2 {[%clk 0:02:10]}  O-O {[%clk 0:02:38]} 12. h4 {[%clk 0:02:10]}  b5 {[%clk 0:02:33]} 13. h5 {[%clk 0:02:10]}  b4 {[%clk 0:02:26]} 14. Na4 {[%clk 0:02:00]}  Ne5 {[%clk 0:02:02]} 15. hxg6 {[%clk 0:01:57]}  Nxg6 {[%clk 0:01:14]} 16. Bh6 {[%clk 0:01:49]}  Be6 {[%clk 0:01:01]} 17. Bxg7 {[%clk 0:01:49]}  Kxg7 {[%clk 0:01:02]} 18. Qh6+ {[%clk 0:01:46]}  Kg8 {[%clk 0:00:59]} 19. O-O-O {[%clk 0:01:36]}  Bxb3 {[%clk 0:00:56]} 20. axb3 {[%clk 0:01:36]}  Rac8 {[%clk 0:00:52]} 21. Rd2 {[%clk 0:01:35]}  d5 {[%clk 0:00:37]} 22. g4 {[%clk 0:01:18]}  dxe4 {[%clk 0:00:35]} 23. g5 {[%clk 0:01:18]}  e3 {[%clk 0:00:33]} 24. gxf6 {[%clk 0:01:18]}  exd2+ {[%clk 0:00:33]} 25. Kb1 {[%clk 0:01:13]}  d1=Q+ {[%clk 0:00:32]} 26. Ka2 {[%clk 0:01:14]}  exf6 {[%clk 0:00:04]} 27. Qxh7# {[%clk 0:01:13]} 1-0


[Site "https://www.chess.com"]

[Event "Titled Tuesday Blitz December 06 Late 2022"]
[White "Toncheva, Nadya"]
[Black "Womacka, Mathias"]
[WhiteFideId "2924056"]
[BlackFideId "4611390"]
[WhiteElo "2101"]
[BlackElo "2377"]
[Result "1-0"]
[Round "10"]
[TimeControl "180+1"]
[Date "2022.12.07"]
[WhiteClock "0:00:04"]
[BlackClock "0:00:01"]

1. e4 {[%clk 0:03:00]}  c5 {[%clk 0:02:58]} 2. Nf3 {[%clk 0:03:01]}  d6 {[%clk 0:02:58]} 3. d4 {[%clk 0:03:01]}  cxd4 {[%clk 0:02:58]} 4. Nxd4 {[%clk 0:03:02]}  Nf6 {[%clk 0:02:58]} 5. Nc3 {[%clk 0:03:02]}  a6 {[%clk 0:02:56]} 6. Be2 {[%clk 0:02:59]}  e5 {[%clk 0:02:56]} 7. Nf3 {[%clk 0:02:59]}  Be7 {[%clk 0:02:55]} 8. O-O {[%clk 0:02:57]}  Be6 {[%clk 0:02:51]} 9. h3 {[%clk 0:02:49]}  O-O {[%clk 0:02:49]} 10. a4 {[%clk 0:02:49]}  h6 {[%clk 0:02:46]} 11. Be3 {[%clk 0:02:49]}  Nbd7 {[%clk 0:02:42]} 12. Nh4 {[%clk 0:02:00]}  Rc8 {[%clk 0:02:03]} 13. Nf5 {[%clk 0:01:50]}  Bxf5 {[%clk 0:02:01]} 14. exf5 {[%clk 0:01:50]}  Nb6 {[%clk 0:01:53]} 15. a5 {[%clk 0:01:16]}  Nc4 {[%clk 0:01:48]} 16. Bxc4 {[%clk 0:01:16]}  Rxc4 {[%clk 0:01:46]} 17. Qd3 {[%clk 0:01:12]}  Rc6 {[%clk 0:01:33]} 18. Bb6 {[%clk 0:01:10]}  Qd7 {[%clk 0:01:25]} 19. Rfd1 {[%clk 0:01:05]}  Bd8 {[%clk 0:01:20]} 20. Bxd8 {[%clk 0:00:51]}  Rxd8 {[%clk 0:01:16]} 21. Rd2 {[%clk 0:00:45]}  d5 {[%clk 0:01:08]} 22. Rad1 {[%clk 0:00:36]}  d4 {[%clk 0:01:07]} 23. Ne4 {[%clk 0:00:33]}  Qxf5 {[%clk 0:01:02]} 24. Nxf6+ {[%clk 0:00:29]}  Qxf6 {[%clk 0:01:02]} 25. Qe4 {[%clk 0:00:27]}  Rdc8 {[%clk 0:00:49]} 26. Re1 {[%clk 0:00:23]}  g6 {[%clk 0:00:35]} 27. Qxe5 {[%clk 0:00:22]}  Qxe5 {[%clk 0:00:35]} 28. Rxe5 {[%clk 0:00:22]}  Rxc2 {[%clk 0:00:34]} 29. Rxd4 {[%clk 0:00:23]}  Rxb2 {[%clk 0:00:28]} 30. Rd7 {[%clk 0:00:23]}  Rc1+ {[%clk 0:00:26]} 31. Kh2 {[%clk 0:00:23]}  Rxf2 {[%clk 0:00:26]} 32. Re8+ {[%clk 0:00:21]}  Kg7 {[%clk 0:00:25]} 33. Rxb7 {[%clk 0:00:15]}  Rcc2 {[%clk 0:00:25]} 34. Rb6 {[%clk 0:00:15]}  Rxg2+ {[%clk 0:00:24]} 35. Kh1 {[%clk 0:00:16]}  Rgd2 {[%clk 0:00:21]} 36. Re1 {[%clk 0:00:16]}  Rc3 {[%clk 0:00:19]} 37. Rxa6 {[%clk 0:00:14]}  Rxh3+ {[%clk 0:00:19]} 38. Kg1 {[%clk 0:00:15]}  Ra3 {[%clk 0:00:17]} 39. Ra7 {[%clk 0:00:13]}  Rd5 {[%clk 0:00:14]} 40. a6 {[%clk 0:00:13]}  Rd6 {[%clk 0:00:14]} 41. Ree7 {[%clk 0:00:12]}  Rf6 {[%clk 0:00:14]} 42. Red7 {[%clk 0:00:07]}  g5 {[%clk 0:00:12]} 43. Re7 {[%clk 0:00:07]}  Kg6 {[%clk 0:00:12]} 44. Re8 {[%clk 0:00:07]}  Raxa6 {[%clk 0:00:10]} 45. Rg8+ {[%clk 0:00:07]}  Kh5 {[%clk 0:00:10]} 46. Rb7 {[%clk 0:00:05]}  Rfd6 {[%clk 0:00:08]} 47. Rb2 {[%clk 0:00:05]}  Rd4 {[%clk 0:00:04]} 48. Rh2+ {[%clk 0:00:04]}  Rh4 {[%clk 0:00:04]} 49. Rf2 {[%clk 0:00:04]}  Rg4+ {[%clk 0:00:03]} 50. Kh2 {[%clk 0:00:04]}  Ra3 {[%clk 0:00:02]} 51. Rxf7 {[%clk 0:00:04]}  Rb4 {[%clk 0:00:01]} 52. Rf2 {[%clk 0:00:03]}  Rbb3 {[%clk 0:00:01]} 53. Kg2 {[%clk 0:00:03]}  Rg3+ {[%clk 0:00:01]} 54. Kf1 {[%clk 0:00:04]} 1-0


[Site "https://www.chess.com"]